fUST/lending_fUST_20250505
["ID","MTS","AMOUNT","RATE_DAILY","PERIOD"]
[359927020,1746429043435,-400.0,0.00035616,14]
[359927021,1746429043444,-400.0,0.00035616,14]
[359927022,1746429043453,-400.0,0.00035616,14]
[359927023,1746429043463,-400.0,0.00035616,14]
[359927024,1746429043472,-400.0,0.00035616,14]
[359927025,1746429043482,-400.0,0.00035616,14]
[359927026,1746429043491,-400.0,0.00035616,2]
[359927027,1746429043500,-400.0,0.00035616,14]
[359927028,1746429043510,-400.0,0.00035616,14]
[359927029,1746429043519,-400.0,0.00035616,14]
[359927030,1746429043528,-791.03,0.00035616,2]
[359927031,1746429043537,-403.7614,0.00035616,14]
[359927032,1746429043547,-400.0,0.00035616,14]
[359927033,1746429043557,-406.70213839,0.00035616,14]
[359927034,1746429043566,-400.0,0.00035616,14]
[359927035,1746429043576,-400.0,0.00035616,14]
[359927036,1746429043585,-400.0,0.00035616,14]
[359927037,1746429043595,-4232.86415099,0.00035646,2]
[359927038,1746429043604,-336.30338284,0.00035652,2]
[359927039,1746429043614,-500.0,0.00035673,5]
[359927040,1746429043624,-503.05939704,0.00035673,5]
[359927041,1746429043634,-500.70098649,0.00035673,5]
[359927042,1746429043643,-500.0,0.00035673,5]
[359927043,1746429043653,-500.0,0.00035673,5]
[359927044,1746429043663,-501.10727872,0.00035673,5]
[359927045,1746429043673,-520.39903729,0.00035673,5]
[359927046,1746429043682,-500.0,0.00035673,5]
[359927047,1746429043693,-500.0,0.00035673,5]
[359927048,1746429043703,-512.96597108,0.00035673,5]
[359927049,1746429043713,-501.59816211,0.00035673,5]
[359927050,1746429043722,-500.28110513,0.00035673,5]
[359927051,1746429043732,-501.20754937,0.00035673,5]
[359927052,1746429043741,-500.0,0.00035673,5]
[359927053,1746429043751,-500.52447087,0.00035673,5]
[359927054,1746429043760,-500.0,0.00035673,5]
[359927055,1746429043770,-500.0,0.00035673,5]
[359927056,1746429043779,-150.0,0.00035673,5]
[359927057,1746429043789,-536.20665699,0.00035673,5]
[359927058,1746429043798,-500.921792,0.00035673,5]
[359927059,1746429043808,-255.70111849,0.00035673,5]
[359927060,1746429043817,-500.0,0.00035673,5]
[359927061,1746429043827,-565.90734514,0.00035728,33]
[359927062,1746429043836,-3082.74263721,0.00035767,2]
[359927063,1746429043846,-4232.86415099,0.00035785,2]
[359927064,1746429043855,-500.0,0.00035873,5]
[359927065,1746429043865,-546.83989229,0.00035873,5]
[359927066,1746429043874,-504.51431816,0.00035873,5]
[359927067,1746429043884,-500.0,0.00035873,5]
[359927068,1746429043893,-500.0,0.00035873,5]
[359927069,1746429043902,-500.0,0.00035873,5]
[359927070,1746429043911,-501.10293965,0.00035873,5]
[359927071,1746429043921,-500.0,0.00035873,5]
[359927072,1746429043930,-501.10160771,0.00035873,5]
[359927073,1746429044035,-501.24117393,0.00035873,5]
[359927074,1746429044045,-500.51801786,0.00035873,5]
[359927075,1746429044055,-500.0,0.00035873,5]
[359927076,1746429044064,-504.40542522,0.00035873,5]
[359927077,1746429044074,-502.03315403,0.00035873,5]
[359927078,1746429044084,-500.47963051,0.00035873,5]
[359927079,1746429044094,-500.69957845,0.00035873,5]
[359927080,1746429044104,-500.25379618,0.00035873,5]
[359927081,1746429044114,-500.0,0.00035873,5]
[359927082,1746429044124,-500.63442812,0.00035873,5]
[359927083,1746429044133,-500.0,0.00035873,5]
[359927084,1746429044143,-500.92515714,0.00035873,5]
[359927085,1746429044155,-500.0,0.00035873,5]
[359927086,1746429044165,-500.0,0.00035873,5]
[359927087,1746429044174,-429.25973723,0.00035873,5]
[359927088,1746429044183,-500.0,0.00035873,5]
[359927089,1746429044193,-500.0,0.00035873,5]
[359927090,1746429044202,-501.38075615,0.00035873,5]
[359927091,1746429044211,-500.0,0.00035873,5]
[359927092,1746429044221,-501.67952829,0.00035873,5]
[359927093,1746429044230,-500.0,0.00035873,5]
[359927094,1746429044240,-500.21956573,0.00035873,5]
[359927095,1746429044250,-500.0,0.00035873,5]
[359927096,1746429044259,-500.84072205,0.00035873,3]
[359927097,1746429044268,-26396.1618372,0.00035875,3]
[359927098,1746429044277,-160.0,0.0003588,3]
[359927099,1746429044287,-160.0,0.0003588,3]
[359927100,1746429044296,-52792.3236743,0.0003588,3]
[359927101,1746429044306,-11991.6915518,0.00035884,2]
[359927102,1746429044315,-421.83547488,0.00035884,2]
[359927103,1746429044325,-160.0,0.00035884,2]
[359927104,1746429044335,-160.0,0.00035884,2]
[359927105,1746429044344,-400.0,0.0003589,14]
[359927106,1746429044354,-400.0,0.0003589,14]
[359927107,1746429044364,-400.0,0.0003589,14]
[359927108,1746429044374,-400.0,0.0003589,14]
[359927109,1746429044383,-499.30370521,0.0003589,14]
[359927110,1746429044393,-400.0,0.0003589,14]
[359927111,1746429044403,-400.0,0.0003589,14]
[359927112,1746429044413,-328.45670193,0.0003589,14]
[359927113,1746429044423,-400.0,0.0003589,14]
[359927114,1746429044432,-400.0,0.0003589,14]
[359927115,1746429044442,-163.77125305,0.0003589,14]
[359927116,1746429044452,-365.46788555,0.0003589,14]
[359927117,1746429044462,-400.0,0.0003589,14]
[359927118,1746429044472,-400.0,0.0003589,14]
[359927119,1746429044482,-400.0,0.0003589,14]
[359927120,1746429044491,-320.23681378,0.0003589,14]
[359927121,1746429044501,-400.0,0.0003589,14]
[359927122,1746429044510,-400.0,0.0003589,14]
[359927123,1746429044520,-400.0,0.0003589,14]
[359927124,1746429044529,-400.0,0.0003589,14]
[359927125,1746429044539,-400.0,0.0003589,14]
[359927126,1746429044549,-400.0,0.0003589,14]
[359927127,1746429044559,-400.0,0.0003589,14]
[359927128,1746429044568,-400.0,0.0003589,14]
[359927129,1746429044578,-400.0,0.0003589,14]
[359927130,1746429044588,-400.0,0.0003589,14]
[359927131,1746429044597,-400.0,0.0003589,14]
[359927132,1746429044607,-400.0,0.0003589,14]
[359927133,1746429044617,-400.0,0.0003589,14]
[359927134,1746429044626,-400.0,0.0003589,14]
[359927135,1746429044635,-400.0,0.0003589,14]
[359927136,1746429044645,-400.0,0.0003589,14]
[359927137,1746429044655,-400.0,0.0003589,14]
[359927138,1746429044665,-403.60428464,0.0003589,14]
[359927139,1746429044675,-400.0,0.0003589,14]
[359927140,1746429044685,-400.0,0.0003589,14]
[359927141,1746429044694,-302.64660055,0.0003589,14]
[359927142,1746429044704,-413.29,0.0003589,14]
[359927143,1746429044714,-400.0,0.0003589,14]
[359927144,1746429044724,-400.0,0.0003589,14]
[359927145,1746429044733,-400.0,0.0003589,14]
[359927146,1746429044743,-192.7,0.0003589,14]
[359927147,1746429044752,-400.0,0.0003589,14]
[359927148,1746429044762,-400.0,0.0003589,14]
[359927149,1746429044771,-400.0,0.0003589,14]
[359927150,1746429044780,-400.0,0.0003589,14]
[359927151,1746429044790,-400.0,0.0003589,14]
[359927152,1746429044802,-400.0,0.0003589,14]
[359927153,1746429044811,-400.0,0.0003589,14]
[359927154,1746429044822,-400.0,0.0003589,14]
[359927155,1746429044832,-400.0,0.0003589,14]
[359927156,1746429044841,-372.42409753,0.0003589,14]
[359927157,1746429044851,-400.0,0.0003589,14]
[359927158,1746429044860,-400.0,0.0003589,14]
[359927159,1746429044870,-400.0,0.0003589,14]
[359927160,1746429044879,-400.0,0.0003589,14]
[359927161,1746429044889,-400.0,0.0003589,14]
[359927162,1746429044899,-400.0,0.0003589,14]
[359927163,1746429044908,-400.0,0.0003589,14]
[359927164,1746429044917,-400.0,0.0003589,14]
[359927165,1746429044927,-400.0,0.0003589,14]
[359927166,1746429044937,-400.0,0.0003589,14]
[359927167,1746429044947,-414.8728275,0.0003589,14]
[359927168,1746429044957,-400.0,0.0003589,14]
[359927169,1746429044966,-400.0,0.0003589,14]
[359927170,1746429044976,-400.0,0.0003589,14]
[359927171,1746429044986,-400.0,0.0003589,14]
[359927172,1746429044996,-400.0,0.0003589,14]
[359927173,1746429045010,-400.0,0.0003589,14]
[359927174,1746429045019,-400.0,0.0003589,14]
[359927175,1746429045028,-400.0,0.0003589,14]
[359927176,1746429045037,-409.25570381,0.0003589,14]
[359927177,1746429045046,-400.0,0.0003589,14]
[359927178,1746429045056,-400.0,0.0003589,14]
[359927179,1746429045065,-400.0,0.0003589,14]
[359927180,1746429045075,-400.0,0.0003589,14]
[359927181,1746429045085,-400.0,0.0003589,14]
[359927182,1746429045095,-400.0,0.0003589,14]
[359927183,1746429045105,-400.0,0.0003589,14]
[359927184,1746429045115,-400.0,0.0003589,14]
[359927185,1746429045126,-400.0,0.0003589,14]
[359927186,1746429045136,-400.0,0.0003589,14]
[359927187,1746429045145,-400.0,0.0003589,14]
[359927188,1746429045155,-400.0,0.0003589,14]
[359927189,1746429045164,-400.0,0.0003589,14]
[359927190,1746429045174,-400.0,0.0003589,14]
[359927191,1746429045184,-400.0,0.0003589,14]
[359927192,1746429045193,-400.0,0.0003589,14]
[359927193,1746429045202,-400.0,0.0003589,14]
[359927194,1746429045211,-400.0,0.0003589,14]
[359927195,1746429045221,-400.0,0.0003589,14]
[359927196,1746429045231,-400.0,0.0003589,14]
[359927197,1746429045240,-400.0,0.0003589,14]
[359927198,1746429045250,-400.0,0.0003589,14]
[359927199,1746429045260,-400.0,0.0003589,14]
[359927200,1746429045270,-400.0,0.0003589,14]
[359927201,1746429045281,-400.0,0.0003589,14]
[359927202,1746429045291,-400.0,0.0003589,14]
[359927203,1746429045301,-400.0,0.0003589,14]
[359927204,1746429045311,-400.0,0.0003589,14]
[359927205,1746429045320,-400.0,0.0003589,14]
[359927206,1746429045330,-267.85576017,0.0003589,14]
[359927207,1746429045339,-400.0,0.0003589,14]
[359927208,1746429045349,-400.0,0.0003589,14]
[359927209,1746429045359,-412.47630115,0.0003589,14]
[359927210,1746429045369,-400.0,0.0003589,14]
[359927211,1746429045380,-400.0,0.0003589,14]
[359927212,1746429045389,-400.0,0.0003589,14]
[359927213,1746429045399,-400.0,0.0003589,14]
[359927214,1746429045408,-402.62829905,0.0003589,14]
[359927215,1746429045418,-400.0,0.0003589,14]
[359927216,1746429045427,-400.0,0.0003589,14]
[359927217,1746429045437,-400.0,0.0003589,14]
[359927219,1746429045447,-400.0,0.0003589,14]
[359927220,1746429045456,-200.0,0.0003589,14]
[359927221,1746429045465,-400.0,0.0003589,14]
[359927222,1746429045475,-400.0,0.0003589,14]
[359927223,1746429045484,-400.0,0.0003589,14]
[359927224,1746429045494,-400.0,0.0003589,14]
[359927225,1746429045503,-400.0,0.0003589,14]
[359927226,1746429045513,-400.0,0.0003589,14]
[359927227,1746429045522,-400.0,0.0003589,14]
[359927228,1746429045532,-400.0,0.0003589,14]
[359927229,1746429045541,-400.0,0.0003589,14]
[359927230,1746429045551,-400.0,0.0003589,14]
[359927231,1746429045560,-400.0,0.0003589,14]
[359927232,1746429045570,-400.0,0.0003589,14]
[359927233,1746429045580,-400.0,0.0003589,14]
[359927234,1746429045590,-400.0,0.0003589,14]
[359927235,1746429045600,-400.0,0.0003589,14]
[359927236,1746429045610,-400.0,0.0003589,2]
[359927238,1746429045620,-458.56,0.0003589,14]
[359927240,1746429045629,-651.39,0.0003589,14]
[359927242,1746429045638,-400.0,0.0003589,14]
[359927243,1746429045648,-400.0,0.0003589,14]
[359927245,1746429045657,-400.0,0.0003589,14]
[359927246,1746429045666,-400.0,0.0003589,14]
[359927247,1746429045676,-400.0,0.0003589,14]
[359927248,1746429045685,-400.0,0.0003589,14]
[359927249,1746429045695,-400.0,0.0003589,14]
[359927250,1746429045705,-400.0,0.0003589,14]
[359927251,1746429045714,-400.0,0.0003589,14]
[359927252,1746429045723,-400.0,0.0003589,14]
[359927253,1746429045733,-400.0,0.0003589,14]
[359927254,1746429045743,-400.0,0.0003589,14]
[359927255,1746429045752,-400.0,0.0003589,14]
[359927256,1746429045762,-400.0,0.0003589,14]
[359927257,1746429045771,-400.0,0.0003589,14]
[359927259,1746429045781,-400.0,0.0003589,14]
[359927260,1746429045790,-400.0,0.0003589,14]
[359927261,1746429045799,-400.0,0.0003589,14]
[359927262,1746429045809,-400.0,0.0003589,14]
[359927263,1746429045819,-400.0,0.0003589,14]
[359927264,1746429045829,-400.0,0.0003589,14]
[359927265,1746429045840,-400.0,0.0003589,14]
[359927266,1746429045849,-400.0,0.0003589,14]
[359927267,1746429045863,-400.0,0.0003589,14]
[359927268,1746429045873,-400.0,0.0003589,14]
[359927269,1746429045884,-400.0,0.0003589,14]
[359927270,1746429045894,-400.0,0.0003589,14]
[359927271,1746429045904,-400.0,0.0003589,14]
[359927272,1746429045914,-400.0,0.0003589,14]
[359927273,1746429045924,-400.0,0.0003589,14]
[359927274,1746429045934,-400.0,0.0003589,14]
[359927275,1746429045944,-304.06719554,0.0003589,14]
[359927276,1746429045953,-400.0,0.0003589,14]
[359927278,1746429045963,-400.0,0.0003589,14]
[359927279,1746429045973,-400.0,0.0003589,14]
[359927280,1746429045982,-400.0,0.0003589,14]
[359927281,1746429045992,-510.46358372,0.0003589,14]
[359927282,1746429046001,-480.7,0.0003589,14]
[359927283,1746429046011,-400.0,0.0003589,14]
[359927284,1746429046020,-400.0,0.0003589,14]
[359927285,1746429046114,-400.0,0.0003589,14]
[359927286,1746429046336,-400.0,0.0003589,14]
[359927287,1746429046346,-400.0,0.0003589,14]
[359927288,1746429046355,-400.0,0.0003589,14]
[359927289,1746429046365,-400.0,0.0003589,14]
[359927290,1746429046375,-206.96531414,0.0003589,14]
[359927291,1746429046384,-400.0,0.0003589,14]
[359927292,1746429046394,-400.0,0.0003589,14]
[359927293,1746429046403,-646.49,0.0003589,14]
[359927294,1746429046414,-400.0,0.0003589,14]
[359927295,1746429046424,-400.0,0.0003589,14]
[359927296,1746429046433,-414.95841077,0.0003589,14]
[359927297,1746429046444,-400.42670357,0.0003589,14]
[359927298,1746429046454,-400.0,0.0003589,14]
[359927299,1746429046464,-400.0,0.0003589,14]
[359927300,1746429046473,-400.0,0.0003589,14]
[359927301,1746429046483,-400.0,0.0003589,14]
[359927302,1746429046492,-400.0,0.0003589,14]
[359927303,1746429046502,-400.0,0.0003589,14]
[359927304,1746429046511,-400.0,0.0003589,14]
[359927305,1746429046521,-400.0,0.0003589,14]
[359927306,1746429046530,-400.0,0.0003589,14]
[359927307,1746429046540,-400.0,0.0003589,14]
[359927308,1746429046549,-400.0,0.0003589,14]
[359927309,1746429046558,-400.0,0.0003589,14]
[359927310,1746429046567,-400.0,0.0003589,14]
[359927311,1746429046577,-400.0,0.0003589,14]
[359927312,1746429046588,-400.0,0.0003589,14]
[359927313,1746429046598,-400.0,0.0003589,14]
[359927314,1746429046608,-400.51914964,0.0003589,14]
[359927315,1746429046618,-400.0,0.0003589,14]
[359927316,1746429046627,-568.52,0.0003589,14]
[359927317,1746429046636,-895.6,0.0003589,14]
[359927318,1746429046646,-400.0,0.0003589,14]
[359927319,1746429046655,-400.0,0.0003589,14]
[359927320,1746429046665,-400.0,0.0003589,14]
[359927321,1746429046676,-3706.26,0.0003589,14]
[359927322,1746429046686,-611.98,0.0003589,14]
[359927323,1746429046696,-400.0,0.0003589,14]
[359927324,1746429046706,-400.0,0.0003589,14]
[359927325,1746429046717,-400.0,0.0003589,14]
[359927326,1746429046727,-400.0,0.0003589,14]
[359927327,1746429046737,-400.0,0.0003589,14]
[359927328,1746429046746,-400.0,0.0003589,14]
[359927329,1746429046756,-400.0,0.0003589,14]
[359927330,1746429046766,-400.0,0.0003589,14]
[359927331,1746429046775,-400.0,0.0003589,14]
[359927332,1746429046785,-400.0,0.0003589,14]
[359927333,1746429046795,-400.0,0.0003589,14]
[359927334,1746429046804,-400.0,0.0003589,14]
[359927335,1746429046813,-400.0,0.0003589,14]
[359927336,1746429046823,-400.0,0.0003589,14]
[359927337,1746429046833,-1872.75,0.0003589,14]
[359927338,1746429046843,-400.0,0.0003589,14]
[359927339,1746429046853,-1737.72,0.0003589,14]
[359927340,1746429046863,-203.15545183,0.0003589,14]
[359927341,1746429046873,-491.38,0.0003589,14]
[359927342,1746429046882,-400.0,0.0003589,14]
[359927343,1746429046892,-400.0,0.0003589,14]
[359927344,1746429046902,-400.0,0.0003589,14]
[359927345,1746429046911,-265.26738007,0.0003589,14]
[359927346,1746429046922,-315.52967965,0.0003589,14]
[359927347,1746429046932,-434.52,0.0003589,14]
[359927348,1746429046942,-400.0,0.0003589,14]
[359927349,1746429046952,-400.0,0.0003589,14]
[359927350,1746429046961,-405.90429032,0.0003589,14]
[359927351,1746429046970,-400.0,0.0003589,14]
[359927352,1746429046980,-400.0,0.0003589,14]
[359927353,1746429046989,-400.0,0.0003589,14]
[359927354,1746429047000,-450.64,0.0003589,14]
[359927355,1746429047010,-206.11133371,0.0003589,14]
[359927356,1746429047019,-400.0,0.0003589,14]
[359927357,1746429047029,-215.33710196,0.0003589,14]
[359927358,1746429047038,-400.0,0.0003589,14]
[359927359,1746429047048,-221.91685486,0.0003589,14]
[359927360,1746429047058,-411.1,0.0003589,14]
[359927361,1746429047067,-400.0,0.0003589,14]
[359927362,1746429047077,-455.25,0.0003589,14]
[359927363,1746429047086,-400.0,0.0003589,14]
[359927364,1746429047095,-400.0,0.0003589,14]
[359927365,1746429047105,-400.0,0.0003589,14]
[359927366,1746429047115,-209.21318412,0.0003589,14]
[359927367,1746429047124,-400.0,0.0003589,14]
[359927368,1746429047135,-400.0,0.0003589,14]
[359927369,1746429047144,-400.0,0.0003589,14]
[359927370,1746429047153,-948.38,0.0003589,14]
[359927371,1746429047163,-400.0,0.0003589,14]
[359927372,1746429047173,-400.0,0.0003589,14]
[359927373,1746429047183,-400.0,0.0003589,14]
[359927374,1746429047192,-400.0,0.0003589,14]
[359927375,1746429047202,-400.0,0.0003589,14]
[359927376,1746429047211,-403.20537537,0.0003589,14]
[359927377,1746429047221,-498.49,0.0003589,14]
[359927378,1746429047231,-400.0,0.0003589,14]
[359927379,1746429047241,-500.63,0.0003589,14]
[359927380,1746429047252,-400.0,0.0003589,14]
[359927381,1746429047263,-400.0,0.0003589,14]
[359927382,1746429047274,-400.0,0.0003589,14]
[359927383,1746429047285,-400.0,0.0003589,14]
[359927384,1746429047295,-791.03,0.0003589,2]
[359927385,1746429047305,-400.0,0.0003589,14]
[359927386,1746429047315,-400.0,0.0003589,14]
[359927387,1746429047324,-400.0,0.0003589,14]
[359927388,1746429047333,-400.0,0.0003589,14]
[359927389,1746429047343,-1000.0,0.0003589,2]
[359927390,1746429047352,-4232.86415099,0.00035925,2]
[359927391,1746429047362,-565.90734514,0.00035934,33]
[359927392,1746429047371,-9746.4873018,0.0003598,3]
[359927393,1746429047602,-360.77973849,0.00035616,14]
[359927394,1746429047734,-39.22026151,0.00035616,14]
[359927395,1746429047744,-400.0,0.00035616,14]
[359927396,1746429047754,-311.9678264,0.00035616,14]
[359927397,1746429048083,-88.0321736,0.00035616,14]
[359927398,1746429048094,-400.0,0.00035616,14]
[359927399,1746429048104,-793.54,0.00035616,14]
[359927400,1746429048113,-400.0,0.00035616,14]
[359927401,1746429048123,-400.0,0.00035616,14]
[359927402,1746429048134,-400.0,0.00035616,14]
[359927403,1746429048144,-459.02557517,0.00035884,2]
[359927430,1746430032118,-164.0,0.00025,4]
[359927431,1746430032139,-36.90985719,0.00025105,2]
[359927432,1746430040121,-145.17699492,0.00025105,2]
[359927433,1746430040142,-108.23817952,0.00025205,2]
[359927434,1746430049089,-528.48323207,0.00025205,2]
[359927435,1746430049111,-846.62567316,0.00025594,2]
[359927436,1746430049131,-846.62567316,0.00025594,2]
[359927437,1746430049151,-492.788105,0.00027397,2]
[359927438,1746430049171,-163.964752,0.00027764,2]
[359927439,1746430049191,-185.406427,0.0002788,120]
[359927440,1746430049210,-1319.2226707,0.00027936,2]
[359927441,1746430049229,-210.0,0.0003,7]
[359927442,1746430049248,-724.593626,0.00030954,2]
[359927443,1746430049377,-349.6241429,0.00031117,2]
[359927444,1746430049399,-400.0,0.00031162,2]
[359927445,1746430049419,-312.0,0.00031163,3]
[359927446,1746430049439,-500.0,0.00031163,2]
[359927447,1746430049463,-212.95075594,0.00031163,2]
[359927448,1746430049484,-500.0,0.00031163,2]
[359927449,1746430049517,-500.0,0.00031163,2]
[359927450,1746430049552,-500.0,0.00031163,2]
[359927451,1746430049575,-500.0,0.00031163,2]
[359927452,1746430049598,-248.55900645,0.00031163,2]
[359927453,1746430049631,-500.0,0.00031163,2]
[359927454,1746430049651,-161.60397713,0.00031163,2]
[359927455,1746430049684,-500.0,0.00031163,2]
[359927456,1746430049717,-500.0,0.00031163,2]
[359927457,1746430049750,-500.0,0.00031163,2]
[359927458,1746430049783,-546.25301927,0.00031163,2]
[359927459,1746430049805,-2427.56014925,0.00031164,2]
[359927460,1746430049833,-4659.39722453,0.00031164,2]
[359927461,1746430052281,-2680.1856824,0.000292,10]
[359927462,1746430069975,4872.0066504,0.00018,2]
[359927471,1746430145096,-1321.1111056,0.00022,2]
[359927472,1746430145116,-582.03137375,0.00022,7]
[359927473,1746430145137,-1053.72373754,0.00023,2]
[359927474,1746430145157,-5799.02288708,0.000234,2]
[359927475,1746430145176,-152.74419366,0.00024,120]
[359927476,1746430145196,-300.0,0.00024999,2]
[359927477,1746430145216,-172.38951108,0.00025,120]
[359927478,1746430145235,-10183.89288548,0.00025,10]
[359927479,1746430145259,-579.35574252,0.000259,14]
[359927480,1746430145283,-579.35574236,0.00026417,15]
[359927481,1746430145428,-579.35574236,0.00026934,16]
[359927482,1746430145451,-420.0,0.00027082,2]
[359927483,1746430145475,-579.35574236,0.00027452,17]
[359927484,1746430145499,-579.35574236,0.00027969,18]
[359927485,1746430145523,-579.35574236,0.00028486,19]
[359927486,1746430145545,-1818.96190379,0.00029,10]
[359927487,1746430145572,-579.35574236,0.00029003,20]
[359927488,1746430145606,-394.02811325,0.00029199,2]
[359927489,1746430145630,-12121.61211324,0.000292,10]
[359927490,1746430151117,-20048.68272739,0.000292,10]
[359927491,1746430151139,-587.0,0.00029339,2]
[359927492,1746430151159,-507.67998536,0.00029421,2]
[359927493,1746430151183,-579.35574236,0.00029521,21]
[359927494,1746430151207,-579.35574236,0.00030038,22]
[359927495,1746430151231,-579.35574236,0.00030555,23]
[359927496,1746430151251,-220.42312118,0.00030773,10]
[359927497,1746430151274,-507.67998536,0.0003099,2]
[359927498,1746430151300,-579.35574236,0.00031072,24]
[359927499,1746430151321,-155.43765997,0.00031163,2]
[359927500,1746430151342,-211.6533252,0.00031163,2]
[359927501,1746430151363,-330.73713466,0.00031163,2]
[359927502,1746430151385,-17813.04262622,0.00031164,2]
[359927503,1746430151405,-380.0,0.00031224,2]
[359927504,1746430151426,-200.0,0.00031337,2]
[359927505,1746430151446,-245.4693365,0.00031517,2]
[359927506,1746430151471,-579.35574236,0.0003159,25]
[359927507,1746430151492,-823.0,0.00031784,2]
[359927508,1746430151513,-179.58695001,0.0003195,8]
[359927509,1746430151532,-47350.01110594,0.00032,30]
[359927510,1746430151555,-7666.9730104,0.00032,30]
[359927511,1746430151580,-579.35574236,0.00032107,26]
[359927512,1746430151602,-1315.0,0.00032272,3]
[359927513,1746430151623,-163.964752,0.0003233,2]
[359927514,1746430151644,-157.6,0.0003252,2]
[359927515,1746430151669,-579.35574236,0.00032624,27]
[359927516,1746430151689,-292.91921036,0.00032877,2]
[359927517,1746430151714,-579.35574236,0.00033141,28]
[359927518,1746430151734,-492.788105,0.00033165,2]
[359927519,1746430151753,-5000.0,0.00033465,2]
[359927520,1746430151778,-579.35574236,0.00033659,29]
[359927521,1746430151798,-509.84,0.0003378,3]
[359927522,1746430151820,-254.92,0.0003378,3]
[359927523,1746430151840,-1475.99181333,0.0003379,2]
[359927524,1746430151860,-603.64078829,0.00033918,2]
[359927525,1746430151882,-15903.7976646,0.0003399,2]
[359927526,1746430151903,-1493.49,0.0003399,3]
[359927527,1746430151924,-1529.52,0.0003399,3]
[359927528,1746430151944,-41871.08437807,0.00034,5]
[359927556,1746430232276,-1033.99454222,0.000319,2]
[359927557,1746430232286,-324.87267616,0.0003195,8]
[359927558,1746430232295,-466.11536191,0.00032558,2]
[359927559,1746430232307,-41.56462345,0.00032558,2]
[359927560,1746430232316,-500.0,0.00033,5]
[359927561,1746430232326,-500.0,0.00033,5]
[359927562,1746430232335,-212.0329954,0.00033068,2]
[359927563,1746430232344,-400.0,0.00033999,2]
[359927564,1746430232354,-20656.68936763,0.00034,5]
[359927565,1746430232363,-507.67998536,0.00034127,2]
[359927566,1746430232374,-579.35574236,0.00034176,30]
[359927567,1746430232385,-160.0,0.00034239,2]
[359927568,1746430232395,-327.52520554,0.00034693,31]
[359927569,1746430232408,-251.83053682,0.00034693,31]
[359927570,1746430232418,-519.5750188,0.00034761,2]
[359927571,1746430232536,-41.44444438,0.00034795,2]
[359927586,1746430238307,-28.1572416,0.00034795,2]
[359927587,1746430238321,-430.39831402,0.00034795,2]
[359927588,1746430238330,-603.64078829,0.00034807,2]
[359927589,1746430238340,-1000.0,0.00035,7]
[359927590,1746430238350,-289.497,0.00035,5]
[359927591,1746430238359,-1028.21657044,0.00035,2]
[359927592,1746430238369,-603.64078829,0.00035116,2]
[359927593,1746430238378,-764.78,0.0003514,3]
[359927594,1746430238387,-1019.68,0.0003515,3]
[359927595,1746430238397,-457.02653896,0.0003515,3]
[359927605,1746430240469,-52.81346104,0.0003515,3]
[359927606,1746430240479,-579.35574236,0.0003521,32]
[359927607,1746430240489,-1529.52,0.0003535,3]
[359927608,1746430240499,-1204.39663337,0.0003536,3]
[359927609,1746430240510,-1782.58336663,0.0003536,3]
[359927610,1746430240521,-2002.7878388,0.0003536,3]